Cogmind - Beta 11.1 @@@ ROGUE MODE // 2022.12.05 @ 22:08:05 Player: HeartGrenade Result: Destroyed by P-80 Master with Gamma Rifle Performance ------------- Evolutions (9) 4500 Regions Visited (31) 6200 Robots Destroyed (416) 2080 Value Destroyed (21669) 21669 Prototype IDs (59) 1180 Alien Tech Used (0) 0 Bonus (8889) 8889 TOTAL SCORE: 44518 Bonus ------- High Alert Combat Kills 3024 Follower Combat Kills 1758 Network Hubs Disabled 400 Met Data Miner 300 Met Imprinter 300 Met Warlord at Base 500 MAIN.C Attacked Warlord 500 Warlord Defense Kills 240 Met R17 at Cetus 500 Met Warlord at Research 2000 Friendly Fire -633 Cogmind --------- Core Integrity 0/1600 Matter 300/300 Energy 98/100 System Corruption 58% Temperature Cool (0) Movement Core (50) Location -1/Access Parts ------- > --- POWER (4) -------- (None) > --- PROPULSION (6) --- (None) > --- UTILITY (12) ----- (None) > --- WEAPON (3) ------- CR-A16's Behemoth Slayer > --- INVENTORY (5) ---- Micro Fission Core Advanced Energy Well (34) Improved Potential Cannon Peak State ------------ > --- POWER ------------ Light Antimatter Reactor Particle Reactor Light Quantum Reactor Light Quantum Reactor > --- PROPULSION ------- Biometal Medium Treads Biometal Medium Treads Biometal Medium Treads Biometal Medium Treads Advanced Heavy Siege Treads > --- UTILITY ---------- Advanced Heat Sink Advanced Heat Sink Huge Storage Unit Advanced Targeting Computer Experimental Targeting Computer Experimental Target Analyzer Core Analyzer Advanced Transmission Jammer Centrium Light Armor Plating Graphene Brace Improved Hacking Suite Advanced Hacking Suite > --- WEAPON ----------- Tri-rail Accelerator Compact Linear Accelerator > --- INVENTORY -------- Light Quantum Reactor Advanced Heavy Treads Centrium Wheel Advanced Energy Well Advanced Energy Well Advanced Matter Compressor Quantum Capacitor Centrium Medium Armor Plating Antimissile System Advanced Hacking Suite Advanced Hacking Suite Long-range Tractor Beam Enhanced Nova Cannon Enhanced Nova Cannon Improved Potential Cannon Improved Potential Cannon Tri-rail Accelerator Micro-nuke Launcher CR-A16's Behemoth Slayer [Rating: 194] Favorites ----------- Power Neutrino Core Engine Cooled Ion Engine Power Core Neutrino Core Reactor Antimatter Reactor Propulsion Light Treads Treads Light Treads Leg Makeshift Leg Wheel Wheel Flight Unit Q-thruster Utility High-capacity Storage Unit Device Advanced Heat Sink Storage High-capacity Storage Unit Processor Advanced Targeting Computer Hackware Improved Hacking Suite Protection Makeshift Armor Plating Weapon Enhanced Autogun Energy Gun Advanced Variable Charge Gun Energy Cannon Heavy Plasma Cannon Ballistic Gun Enhanced Autogun Ballistic Cannon Tri-rail Accelerator Launcher Heavy Rocket Launcher Slashing Weapon Scythe Piercing Weapon CR-A16's Pointy Stick Build | -11 -10 -9 -9 -8 -8 -7 -7 -7 -7 -7 -7 -6 -6 -6 -6 -6 -5 -5 -5 -5 -5 -4 -4 -4 -4 -4 -4 -3 -3 -2 -1 ------- Run | Scr Mat Mat Min Mat Sto Fac Was Fac Low Low Zio Pro Fac Low Low Dat Pro Fac Upp Upp War Pro Fac Ext Cet Arc Hub Res Tes Res Acc Slots Evolved 18 | . . 2 . 2 . 2 . . . . . . 2 . . . . 2 . . . . 2 . . . . 2 . 2 2 Power 3 | . . . . . . 1 . . . . . . . . . . . . . . . . . . . . . 1 . . 1 Propulsion 4 | . . . . 2 . . . . . . . . . . . . . . . . . . 2 . . . . . . . . Utility 10 | . . 2 . . . 1 . . . . . . 2 . . . . 2 . . . . . . . . . 1 . 1 1 Weapon 1 | . . . . . . . . . . . . . . . . . . . . . . . . . . . . . . 1 . Parts Attached 523 | 4 3 17 . 21 25 3 10 10 8 7 1 9 33 3 19 2 8 21 3 2 17 21 34 9 11 21 13 14 59 61 54 Power 51 | . . 1 . 2 3 . 2 . . . 1 . 2 . 1 . . 2 . . 2 . 2 3 2 2 1 1 6 8 10 Engine 10 | . . 1 . 2 3 . . . . . 1 . 2 . 1 . . . . . . . . . . . . . . . . Core 10 | . . . . . . . . . . . . . . . . . . 2 . . 2 . 2 2 1 . . . . . 1 Reactor 31 | . . . . . . . 2 . . . . . . . . . . . . . . . . 1 1 2 1 1 6 8 9 Propulsion 113 | 2 . 4 . 8 6 . 3 . 2 1 . 1 5 3 5 . . 3 . . 4 . 4 . 1 4 6 3 16 14 18 Treads 62 | 2 . 4 . 8 6 . 3 . 2 . . 1 . 3 . . . 1 . . 1 . 4 . 1 2 1 1 3 12 7 Leg 7 | . . . . . . . . . . . . . 1 . 2 . . 1 . . 3 . . . . . . . . . . Wheel 41 | . . . . . . . . . . 1 . . 4 . 3 . . 1 . . . . . . . 2 5 2 13 2 8 Hover . | . . . . . . . . . . . . . . . . . . . . . . . . . . . . . . . . Flight 3 | . . . . . . . . . . . . . . . . . . . . . . . . . . . . . . . 3 Utility 193 | . 2 8 . 3 5 3 3 6 2 2 . 4 14 . 4 . 6 11 1 . 9 11 21 6 6 9 4 3 18 20 12 Device 103 | . . 3 . 1 3 . 1 2 1 . . 3 9 . 2 . 5 9 . . 4 11 16 2 1 4 3 3 4 9 7 Storage 7 | . . 1 . . . . . . . . . . 1 . . . . . . . . . . 1 . . . . 1 1 2 Processor 12 | . 1 . . . . . . 3 . . . . . . . . . 1 . . . . 2 . . . . . 4 1 . Hackware 8 | . . . . . . . . . . . . . . . . . . . . . . . . . . 1 . . 1 3 3 Protection 63 | . 1 4 . 2 2 3 2 1 1 2 . 1 4 . 2 . 1 1 1 . 5 . 3 3 5 4 1 . 8 6 . Artifact . | . . . . . . . . . . . . . . . . . . . . . . . . . . . . . . . . Weapon 166 | 2 1 4 . 8 11 . 2 4 4 4 . 4 12 . 9 2 2 5 2 2 2 10 7 . 2 6 2 7 19 19 14 Energy Gun 24 | . . 1 . 2 6 . . . . . . . . . . . . . . . . . . . 2 1 1 1 7 3 . Energy Cannon 59 | . . . . . . . 1 . . . . 3 6 . 6 2 1 3 1 1 1 5 4 . . 2 1 3 8 6 5 Ballistic Gun 26 | 2 1 3 . 4 3 . . 3 2 2 . . . . . . . . . . . . . . . 2 . . . 4 . Ballistic Cannon 5 | . . . . . . . . . . . . . . . . . . . . . . . . . . . . . 2 2 1 Launcher 27 | . . . . . 1 . . 1 2 2 . 1 2 . 3 . 1 2 1 1 . 3 . . . . . . 1 4 2 Special Weapon . | . . . . . . . . . . . . . . . . . . . . . . . . . . . . . . . . Impact Weapon . | . . . . . . . . . . . . . . . . . . . . . . . . . . . . . . . . Slashing Weapon 4 | . . . . 2 1 . 1 . . . . . . . . . . . . . . . . . . . . . . . . Piercing Weapon 21 | . . . . . . . . . . . . . 4 . . . . . . . 1 2 3 . . 1 . 3 1 . 6 Special Melee Weapon . | . . . . . . . . . . . . . . . . . . . . . . . . . . . . . . . . Unidentified Prototypes 29 | . . 1 . . 5 . . . . . . . 1 . . . 1 . . . 3 . . 2 2 . 1 . 7 5 1 Corrupted Parts 4 | . . . . . . . . . . . . . . . . . . . . . . . . . . . . . . . 4 System Corruption 19 | . . . . . . . . . . . . . . . . . . . . . . . . . . . . . . . 19 Parts Lost 141 | . . 3 . 4 6 . . 2 2 . . 2 6 . 7 . . 1 1 2 1 . 5 . 3 7 10 2 25 16 36 Power 23 | . . . . . . . . . . . . . 1 . 2 . . . . . . . . . . 1 2 . 3 6 8 Propulsion 49 | . . . . 2 1 . . . 1 . . . 2 . 2 . . 1 . 2 . . . . 1 2 4 1 10 3 17 Utility 50 | . . 2 . 1 3 . . 2 1 . . 1 3 . 2 . . . 1 . 1 . 3 . 2 3 3 . 9 5 8 Weapon 19 | . . 1 . 1 2 . . . . . . 1 . . 1 . . . . . . . 2 . . 1 1 1 3 2 3 Highest Loss Streak 9 | . . 3 . 2 5 . . 1 1 . . 2 3 . 6 . . 1 1 2 1 . 3 . 2 6 4 1 8 9 9 To Critical Strikes 2 | . . . . . . . . . . . . . . . . . . . . . . . . . 1 . . . 1 . . Average Slot Usage (%) 86 | . 58 93 100 99 96 88 87 83 83 83 84 83 84 100 83 74 86 92 94 93 89 100 84 87 86 74 85 74 75 84 66 Engine 3 | . . 7 11 9 8 7 7 7 7 7 7 7 9 13 8 6 6 1 . . . . . . . . . . . . . Core 3 | . . . . . . . . . . . . . . . . . . 9 11 11 11 11 10 9 5 2 . . . . . Reactor 3 | . . . . . . . 3 7 7 7 7 7 2 . . . . . . . . . . . 5 6 7 6 8 11 9 Treads 13 | . 28 22 22 35 35 30 22 15 14 9 7 6 3 1 6 . . . 5 4 . 5 18 21 20 14 13 8 9 12 9 Leg 2 | . . . . . . . . . . . . . 2 5 4 13 13 14 11 10 8 17 . . . . . . . . . Wheel 4 | . . . . . . . . . . 5 7 7 8 19 10 13 13 6 5 5 4 . . . . 3 10 16 9 3 4 Device 13 | . . 10 11 9 8 7 7 4 4 7 7 7 10 20 18 20 20 27 23 23 22 23 20 21 19 7 12 19 15 9 13 Storage 6 | . . 10 11 9 9 7 7 7 7 7 7 7 6 6 6 6 6 5 5 5 5 5 5 5 5 5 5 4 4 4 3 Processor 8 | . 1 11 11 9 6 . . 9 15 15 15 15 11 6 2 . . . . . . . 6 10 10 10 10 4 10 18 11 Protection 10 | . . 9 11 9 11 19 23 15 10 7 7 7 13 13 10 13 13 11 17 17 21 23 11 9 10 11 12 4 5 3 1 Energy Gun 1 | . . . . 1 13 . . . . . . . . . . . . . . . . . . . 6 5 5 6 5 2 . Energy Cannon 4 | . . . . . . . 6 . . . . 11 11 6 9 1 12 11 10 10 6 10 8 10 3 . . . 1 6 2 Ballistic Gun 5 | . 28 22 22 16 2 15 1 14 14 14 15 2 . . . . . . . . . . . . . 1 4 . . . . Naked Turns 18 | . . . . . . . . . . . . . . . . . . . . . . . . . . . . . . . 18 Heaviest Build 178 | 3 3 57 57 59 61 71 93 93 81 79 80 90 98 80 91 91 102 113 111 104 112 108 128 117 107 113 137 151 164 175 178 Greatest Support 220 | 3 40 40 40 80 80 80 140 140 140 140 70 70 70 36 40 26 26 26 16 16 70 70 197 197 197 86 109 52 188 220 220 Greatest Overweight (x) 16 | . . 2 1 . . . 1 . . 2 1 3 5 3 7 3 3 7 6 6 6 1 1 . 1 3 9 5 11 8 16 Average Overweight (x) 1 | . . . 1 . . . . . . 1 1 2 2 2 2 2 3 5 6 6 5 1 . . . 2 2 2 2 2 2 Largest Inventory Capacity 25 | 5 5 20 20 20 20 20 20 20 20 20 20 20 20 20 20 20 20 20 20 20 20 20 20 20 20 20 20 20 20 25 25 Average Capacity 20 | 5 5 19 20 20 20 20 20 20 20 20 20 20 20 20 20 20 20 20 20 20 20 20 20 20 20 20 20 20 20 24 21 Most Carried 25 | 2 5 20 18 20 20 20 20 20 20 20 20 20 20 20 20 20 20 20 20 19 20 20 20 20 20 20 20 20 20 25 25 Average Carried 19 | 1 3 12 17 19 19 19 19 20 19 19 19 19 19 19 19 20 20 19 19 19 19 19 19 19 19 19 19 18 18 23 19 Final Capacity 25 | 5 5 20 20 20 20 20 20 20 20 20 20 20 20 20 20 20 20 20 20 20 20 20 20 20 20 20 20 20 20 25 5 Final Carried 25 | 2 5 17 18 20 20 20 20 20 19 20 20 20 20 20 20 20 20 20 19 19 20 20 20 20 20 20 18 20 20 25 4 Class Distribution -------------------- 59% | Scavenger-Mutant 23% | Mutant 10% | Derelict-Mutant 3% | Generator-Mutant Dominant Class ---------------- Mutant | -10/Materials Scavenger-Mutant | -9/Materials Scavenger-Mutant | -9/Mines Scavenger-Mutant | -8/Materials Scavenger-Mutant | -8/Storage Scavenger-Mutant | -7/Factory Scavenger-Mutant | -7/Waste Mutant | -7/Factory Scavenger-Mutant | -7/Lower Caves Mutant | -7/Lower Caves Mutant | -7/Zion Mutant | -6/Proximity Caves Scavenger-Mutant | -6/Factory Scavenger-Mutant | -6/Lower Caves Mutant | -6/Lower Caves Derelict-Mutant | -6/Data Miner Derelict-Mutant | -5/Proximity Caves Derelict-Mutant | -5/Factory Scavenger-Mutant | -5/Upper Caves Scavenger-Mutant | -5/Upper Caves Derelict-Mutant | -5/Warlord Scavenger-Mutant | -4/Proximity Caves Scavenger-Mutant | -4/Factory Scavenger-Mutant | -4/Extension Scavenger-Mutant | -4/Cetus Scavenger-Mutant | -4/Archives Scavenger-Mutant | -4/Hub_04(d) Scavenger-Mutant | -3/Research Scavenger-Mutant | -3/Testing Scavenger-Mutant | -2/Research Scavenger-Mutant | -1/Access Resources | -11 -10 -9 -9 -8 -8 -7 -7 -7 -7 -7 -7 -6 -6 -6 -6 -6 -5 -5 -5 -5 -5 -4 -4 -4 -4 -4 -4 -3 -3 -2 -1 ----------- Run | Scr Mat Mat Min Mat Sto Fac Was Fac Low Low Zio Pro Fac Low Low Dat Pro Fac Upp Upp War Pro Fac Ext Cet Arc Hub Res Tes Res Acc Matter Collected 9296 | 240 86 407 20 658 261 . 130 557 564 226 34 136 300 50 325 . 143 141 144 64 170 329 327 126 137 256 265 155 919 1045 1081 Remotely . | . . . . . . . . . . . . . . . . . . . . . . . . . . . . . . . . Salvage Created 19827 | . 181 834 57 1035 1163 . . 834 590 233 . 310 1027 . 368 . 59 400 116 109 71 660 1916 552 222 536 758 815 1981 1903 3097 Parts 905 | . 9 49 7 54 80 . . 47 27 14 . 15 36 . 10 . 5 28 5 . 2 29 87 22 17 16 42 40 68 69 127 Haulers Intercepted 11 | . . 4 . 4 3 . . . . . . . . . . . . . . . . . . . . . . . . . . Recyclers Shooed 4 | . . . . . . . . 1 . . . . 1 . . . . . . . . . 1 . . . . . . . 1 Parts Field Recycled . | . . . . . . . . . . . . . . . . . . . . . . . . . . . . . . . . Retrieved Matter . | . . . . . . . . . . . . . . . . . . . . . . . . . . . . . . . . Parts Self-Destructed 104 | . . . . . . . . . 24 12 . 26 . 2 8 . 5 . 5 . . 22 . . . . . . . . . Prevented 6 | . . . . . . . . . . . . . . . . . . . 6 . . . . . . . . . . . . Kills | -11 -10 -9 -9 -8 -8 -7 -7 -7 -7 -7 -7 -6 -6 -6 -6 -6 -5 -5 -5 -5 -5 -4 -4 -4 -4 -4 -4 -3 -3 -2 -1 ------- Run | Scr Mat Mat Min Mat Sto Fac Was Fac Low Low Zio Pro Fac Low Low Dat Pro Fac Upp Upp War Pro Fac Ext Cet Arc Hub Res Tes Res Acc Combat Hostiles Destroyed 345 | . 5 14 4 16 19 . . 13 16 8 . 6 13 . 11 . 4 13 6 4 1 21 31 7 4 4 9 7 30 34 45 Melee 8 | . . . . . . . . . . . . . 1 . . . . . . . . . 5 . . . . . 1 . 1 Guns 111 | . 5 14 4 16 12 . . 13 9 3 . . . . . . . . . . . . . . 2 2 7 5 13 6 . Cannons 123 | . . . . . . . . . . . . 4 11 . 1 . 1 4 3 2 1 4 23 7 2 1 2 2 11 16 28 AOE 82 | . . . . . 6 . . . 7 5 . 1 . . 9 . 3 8 3 2 . 14 2 . . . . . 2 8 12 Classes Destroyed 25 | . 1 2 1 4 4 . . 1 . 1 . 1 . . . . . . . . 1 1 . . . . 1 1 2 1 3 Worker 16 | . . . . . 3 . . . . . . . . . . . . . . . . . . . . . 2 3 1 . 7 Builder 12 | . . . . 1 2 . . . . . . . 1 . . . . . . . . . . . . . 1 2 2 . 3 Tunneler 5 | . . . . 1 . . . 1 . . . . . . . . . 1 . . . . 2 . . . . . . . . Hauler 11 | . . 4 . 4 3 . . . . . . . . . . . . . . . . . . . . . . . . . . Recycler 9 | . . . . 1 1 . . 2 . . . . 2 . . . . . . . . . . . . . . 1 . . 2 Minesweeper 1 | . . . . . . . . . . . . 1 . . . . . . . . . . . . . . . . . . . Mechanic 2 | . . . . . . . . . . . . . . . . . . . . . . . . . . . . 2 . . . Operator 7 | . . . . . 1 . . . . . . . . . . . . . . . . . . . . 5 . . . 1 . Watcher 7 | . . . . . 1 . . 1 . . . . . . . . . . . . . . . . 1 . 1 . . 1 2 Swarmer 66 | . . . 4 . 6 . . 3 4 3 . . . . 2 . 4 8 5 . . 14 3 . 1 . . . . 9 . Cutter 3 | . . . . . . . . . . . . . . . . . . . . . . . . . . . . . . . 3 Grunt 123 | . 5 9 . 11 7 . . 4 10 3 . 2 9 . 4 . . . . 4 . 5 11 . . . 3 3 13 6 14 Brawler 4 | . . . . . . . . . . 1 . 1 . . . . . . . . . . . . . . . . . . 2 Duelist 9 | . . . . 1 . . . . 1 . . . . . 1 . . . . . . . 1 . . . . . 3 . 2 Protector 1 | . . . . . . . . . . . . . . . . . . . . . . . . . . . . . . . 1 Sentry 56 | . . 5 . 4 5 . . 3 . 1 . 1 3 . 2 . . 1 . . . 1 8 6 . 4 3 1 2 4 2 Demolisher 3 | . . . . . . . . . . . . . . . . . . . . . . . . . . . . . . 3 . Specialist 3 | . . . . . . . . . . . . . . . . . . . . . . . . . . . 3 . . . . Hunter 16 | . . . . . 1 . . 2 . . . 1 . . 2 . . . . . . . . . . . . . . 2 8 Programmer 40 | . . . . . . . . 1 1 . . 1 1 . . . . 4 1 . . . 7 . . . . 3 9 . 12 Behemoth 3 | . . . . . . . . . . . . . . . . . . . . . . 1 1 1 . . . . . . . Cetus Guard 3 | . . . . . . . . . . . . . . . . . . . . . . . . . 3 . . . . . . Striker 8 | . . . . . . . . . . . . . . . . . . . . . . . . . . . . . 2 6 . Executioner 5 | . . . . . . . . . . . . . . . . . . . . . 1 . . . . . . . . 4 . Alpha 7 1 | . . . . . . . . . . . . . . . . . . . . . . . . . . . . . 1 . . Thug 1 | . . . . . . . . . . . . . . . . . . . . . . . . . . . . . . 1 . Hydra 1 | . . . . . . . . . . . . . . . . . . . . . . . . . . . . . . . 1 Best Kill Streak 12 | . 4 5 3 6 5 . . 6 4 4 . 3 4 . 5 . 3 4 5 4 1 7 4 3 3 2 5 4 7 6 12 Combat Bots Only 9 | . 4 5 3 5 4 . . 3 4 4 . 3 4 . 5 . 3 4 5 4 1 7 4 3 2 2 2 2 7 6 9 Max Kills in Single Turn 4 | . 1 1 1 2 4 . . 2 3 2 . 1 2 . 3 . 3 4 3 2 1 3 2 1 1 1 2 2 2 2 4 Gunslinging . | . . . . . . . . . . . . . . . . . . . . . . . . . . . . . . . . Exploded 4 | . . . . . 3 . . . 3 2 . 1 . . 3 . 3 4 3 2 . 3 2 . . . . . 2 2 4 Melee 1 | . . . . . . . . . . . . . 1 . . . . . . . . . 1 . . . . . 1 . 1 Uniques/NPCs Destroyed . | . . . . . . . . . . . . . . . . . . . . . . . . . . . . . . . . Combat | -11 -10 -9 -9 -8 -8 -7 -7 -7 -7 -7 -7 -6 -6 -6 -6 -6 -5 -5 -5 -5 -5 -4 -4 -4 -4 -4 -4 -3 -3 -2 -1 -------- Run | Scr Mat Mat Min Mat Sto Fac Was Fac Low Low Zio Pro Fac Low Low Dat Pro Fac Upp Upp War Pro Fac Ext Cet Arc Hub Res Tes Res Acc Damage Taken 39635 | . 163 683 58 1547 894 . 26 1068 1000 271 . 738 1214 40 1193 . 93 485 278 736 180 940 2750 454 1075 1240 1834 530 6727 6599 6819 Core 4372 | . 35 81 14 128 75 . . 97 70 16 . 67 120 16 173 . 21 . 20 12 32 48 92 19 39 24 50 4 556 941 1622 Absorbed by Shields 740 | . . . . . . . . . . . . . . . . . . . . . 59 238 . 61 326 56 . . . . . Reduced by Siege Mode 1003 | . . . . . . . . 17 122 20 . 19 . . . . . . . . . . 22 . 5 . . . 192 606 . Regen/Repaired (Parts) 328 | . . . . . . . . . . . . . . . . . . . . . . . 328 . . . . . . . . Core Remaining (%) 70 | 100 86 . 76 . 63 . . . . . . 64 . . . . 61 . . . . 88 . . . . 80 . 56 35 . Volleys Fired 1191 | . 13 68 5 76 38 . 15 60 58 18 . 24 46 1 30 . 11 41 5 8 19 31 90 24 28 29 58 37 128 88 142 Largest 3 | . 2 2 2 2 2 . 1 2 2 2 . 2 2 1 2 . 2 2 2 2 2 2 2 2 2 2 2 2 2 3 2 Hottest 360 | . 40 43 43 50 90 . 65 50 50 58 . 130 130 65 180 . 180 188 188 188 188 188 188 180 180 320 240 240 240 360 201 Shots Fired 2004 | . 28 136 10 152 69 . 15 118 109 32 . 41 92 1 42 . 15 54 9 12 29 45 148 47 52 56 106 72 230 136 148 Gun 1078 | . 28 136 10 152 69 . . 116 102 26 . 6 . . . . . . . . . . . . 38 52 98 56 141 48 . Cannon 857 | . . . . . . . 15 . . . . 32 92 1 30 . 14 50 8 8 29 36 148 47 14 4 8 16 87 78 140 Launcher 69 | . . . . . . . . 2 7 6 . 3 . . 12 . 1 4 1 4 . 9 . . . . . . 2 10 8 Special . | . . . . . . . . . . . . . . . . . . . . . . . . . . . . . . . . Kinetic 719 | . 28 136 10 152 4 . . 116 102 26 . 6 . . . . . . . . . . . . . 8 36 . 3 42 50 Thermal 1094 | . . . . . . . 15 . . . . 32 92 1 30 . 14 50 8 8 29 36 148 47 52 48 70 72 225 71 46 Explosive 69 | . . . . . . . . 2 7 6 . 3 . . 12 . 1 4 1 4 . 9 . . . . . . 2 10 8 Electromagnetic 122 | . . . . . 65 . . . . . . . . . . . . . . . . . . . . . . . . 13 44 Robot Hit Streak 48 | . 7 23 5 18 32 . 6 14 19 15 . 11 18 . 11 . 1 8 3 2 4 6 21 20 18 13 40 12 48 34 30 Robot Miss Streak 5 | . 1 3 1 3 3 . . 2 3 1 . 4 2 1 3 . 2 3 1 2 4 2 3 1 3 2 2 5 3 5 3 Penetration Max 1 | . . . . . . . . . . . . . . . . . . . . . . . . . . . 1 . . 1 . Secondary Targets 7 | . . . . 1 1 . . 2 1 . . . . . . . . . . . . . . . . . 1 . . 1 . Max Gunslinging Chain 1 | . . . . 1 1 . . 1 1 . . . . . . . . . . . . . . . . . 1 . . 1 . Capacitor 48 | . . . . . . . . . . . . . . . . . . . . . . . . . . . . . . . 48 Shots Hit Robots 1524 | . 21 110 7 124 59 . 2 93 83 27 . 29 70 . 21 . 2 22 3 5 8 27 112 37 40 57 79 53 193 108 132 Core Hits 825 | . 11 46 4 53 51 . . 38 29 14 . 16 29 . 32 . 5 18 7 13 4 29 51 14 15 19 36 24 70 84 113 Critical Kills 9 | . . . . 1 . . . . . . . 1 1 . . . . . . . . 1 . . . . . . 1 4 . Critical Parts Destroyed 8 | . . . . 1 . . . . . . . . . . . . . . . . . . . . . . 2 . . 5 . Critical Strikes 52 | . . . . 2 . . . . . . . 1 1 . . . . . . . . 1 7 . . 4 2 1 3 14 16 Meltdown 6 | . . . . . . . . . . . . 1 1 . . . . . . . . 1 . . . . . . 1 2 . Destroy 12 | . . . . 2 . . . . . . . . . . . . . . . . . . . . . . 2 . . 8 . Blast 15 | . . . . . . . . . . . . . . . . . . . . . . . . . . . . . . 3 12 Corrupt 4 | . . . . . . . . . . . . . . . . . . . . . . . . . . . . . . 1 3 Impale 15 | . . . . . . . . . . . . . . . . . . . . . . . 7 . . 4 . 1 2 . 1 Melee Attacks 97 | . . . . 2 1 . 3 . . . . . 8 . 1 . . . . . 11 5 29 . . 12 . 5 10 . 10 Impact . | . . . . . . . . . . . . . . . . . . . . . . . . . . . . . . . . Slashing 6 | . . . . 2 1 . 3 . . . . . . . . . . . . . . . . . . . . . . . . Piercing 91 | . . . . . . . . . . . . . 8 . 1 . . . . . 11 5 29 . . 12 . 5 10 . 10 Sneak Attacks 15 | . . . . . . . . . . . . . . . . . . . . . . . 2 . . 7 . 5 . . 1 Combat Hostiles . | . . . . . . . . . . . . . . . . . . . . . . . . . . . . . . . . Follow-up Attacks . | . . . . . . . . . . . . . . . . . . . . . . . . . . . . . . . . Damage Inflicted 57202 | . 206 1082 91 2133 1799 . 55 1692 1914 818 . 1021 2002 . 1913 . 227 1397 375 666 454 2319 4981 1483 1324 1884 2892 2065 7027 5836 9546 Guns 19047 | . 206 1082 91 2114 1103 . . 1575 1375 422 . 62 . . . . . . . . . . . . 961 1205 2284 1211 3870 1486 . Cannons 23065 | . . . . . . . 55 . . . . 664 1939 . 541 . 63 769 107 130 454 651 3378 1440 363 107 153 522 2486 2532 6711 Explosions 12586 | . . . . . 696 . . 117 539 396 . 295 . . 1372 . 164 628 268 536 . 1541 834 29 . . 455 . 223 1818 2675 Melee 2471 | . . . . . . . . . . . . . 63 . . . . . . . . 127 769 . . 572 . 332 448 . 160 Ramming 33 | . . . . 19 . . . . . . . . . . . . . . . . . . . 14 . . . . . . . Kinetic 13268 | . 206 1082 91 2114 39 . . 1575 1375 422 . 62 . . . . . . . . . . . . . 156 963 . 117 1764 3302 Thermal 27155 | . . . . . 302 . 55 . . . . 664 1939 . 541 . 63 769 107 130 454 651 4212 1440 1324 1156 1474 1733 6239 1922 1980 Explosive 10460 | . . . . . 394 . . 117 539 396 . 295 . . 1372 . 164 628 268 536 . 1541 . . . . . . 223 1818 2169 Electromagnetic 3815 | . . . . . 1064 . . . . . . . . . . . . . . . . . . 29 . . 455 . . 332 1935 Impact . | . . . . . . . . . . . . . . . . . . . . . . . . . . . . . . . . Slashing . | . . . . . . . . . . . . . . . . . . . . . . . . . . . . . . . . Piercing 2471 | . . . . . . . . . . . . . 63 . . . . . . . . 127 769 . . 572 . 332 448 . 160 Highest Corruption 58 | . 5 1 1 . . . . 1 . . . . . . 2 2 2 1 . . . . 6 6 7 7 3 1 15 1 58 Average Corruption 6 | . 3 1 1 . . . . 1 . . . . . . 2 2 2 1 . . . . 2 6 6 6 2 1 5 1 38 Corruption Purged 9 | . . . . . . . . 1 . . . . . . . . . 1 . . . . . . . 7 . . . . . Corruption Blocked 19 | . . . . . . . . . 1 . . 4 1 . 2 . . . . . . . . . . . . . . 11 . Effects 239 | . 5 13 4 . . . . 5 . . . . . . 6 1 7 3 . . . . 2 29 12 15 8 1 29 17 82 Message Errors 51 | . . . 1 . . . . 2 . . . . . . 2 . 4 . . . . . . 12 2 3 1 . 3 3 18 Matter Fused 41 | . 1 5 . . . . . . . . . . . . 1 1 3 . . . . . . 4 4 2 3 . 3 4 10 Heat Flow Errors 32 | . 1 2 . . . . . 1 . . . . . . . . . 1 . . . . . 6 1 3 . . 8 2 7 Energy Discharges 18 | . . 3 . . . . . 1 . . . . . . 1 . . . . . . . 1 1 1 1 . . 1 1 7 Parts Rejected 13 | . . . . . . . . . . . . . . . . . . . . . . . . 1 1 1 1 . 3 1 5 Data Loss (minor) 23 | . 1 . 2 . . . . . . . . . . . 1 . . 1 . . . . . . 1 2 . 1 3 4 7 Data Loss (major) 14 | . . 1 . . . . . 1 . . . . . . 1 . . 1 . . . . . 2 2 1 1 . 2 . 2 Misfires 12 | . 2 . . . . . . . . . . . . . . . . . . . . . 1 1 . 1 . . 3 . 4 Alerts 9 | . . 2 1 . . . . . . . . . . . . . . . . . . . . 1 . . . . 1 2 2 Misdirections 15 | . . . . . . . . . . . . . . . . . . . . . . . . . . . . . 1 . 14 Weapon Failures 11 | . . . . . . . . . . . . . . . . . . . . . . . . 1 . 1 2 . 1 . 6 Overload Shots 8 | . . . . . . . . . . . . . . . . . . . . . . . . . . 1 5 1 1 . . Effects 1 | . . . . . . . . . . . . . . . . . . . . . . . . . . 1 . . . . . Heat Surge 1 | . . . . . . . . . . . . . . . . . . . . . . . . . . 1 . . . . . Overflow Damage 1478 | . . . . 4 34 . . . 36 15 . 57 8 . 81 . . 43 1 16 14 115 249 40 . 214 . 83 81 91 296 Projectiles 770 | . . . . . . . . . . . . 57 8 . 44 . . 28 . 16 14 25 67 40 . . . 53 81 91 246 Explosions 371 | . . . . . 34 . . . 36 15 . . . . 37 . . 15 1 . . 90 93 . . . . . . . 50 Melee 337 | . . . . 4 . . . . . . . . . . . . . . . . . . 89 . . 214 . 30 . . . Knockbacks 31 | . . . . . . . . . . . . . . . . . . . . . . . . . . . . . 3 11 17 Impact . | . . . . . . . . . . . . . . . . . . . . . . . . . . . . . . . . Kinetic 29 | . . . . . . . . . . . . . . . . . . . . . . . . . . . . . 3 11 15 Secondary 2 | . . . . . . . . . . . . . . . . . . . . . . . . . . . . . . . 2 Self-Inflicted Damage 1096 | . . . . . 231 . . 46 27 8 . . . . 51 . . . . . . 42 70 . . . 53 . . 440 128 Shots 26 | . . . . . 4 . . 1 2 1 . . . . 1 . . . . . . 2 2 . . . 3 . . 7 3 Rammed 2 | . . . . 1 . . . . . . . . . . . . . . . . . . . 1 . . . . . . . Targets Rammed 2 | . . . . 1 . . . . . . . . . . . . . . . . . . . 1 . . . . . . . Kicked . | . . . . . . . . . . . . . . . . . . . . . . . . . . . . . . . . Crushed . | . . . . . . . . . . . . . . . . . . . . . . . . . . . . . . . . Highest Temperature 408 | . 110 194 . 15 84 . . 149 150 . . 18 193 . 153 . 108 255 . 54 60 134 274 202 53 324 164 102 301 370 408 Average Temperature 80 | . 24 67 . 9 41 . . 48 50 . . 6 74 . 51 . 32 78 . 36 19 61 75 80 16 124 44 29 91 126 92 Received Heat Transfer 6054 | . 78 279 . 846 270 . . 225 360 66 . 81 549 12 288 . . 36 . 172 9 158 459 114 90 180 348 112 656 234 432 Effects 4 | . . . . . . . . . . . . . . . . . . . . . . . . . . . . . . 3 1 Shutdowns 1 | . . . . . . . . . . . . . . . . . . . . . . . . . . . . . . 1 . Interference 2 | . . . . . . . . . . . . . . . . . . . . . . . . . . . . . . 2 . Matter Decay 1 | . . . . . . . . . . . . . . . . . . . . . . . . . . . . . . . 1 Siege Activations 18 | . . . . . . . . 3 2 1 . 1 1 . . . . . . . . . 5 . 1 . . . 3 1 . Total Turns 419 | . . . . . . . . 21 63 16 . 22 22 . . . . . . . . . 96 . 17 . . . 126 36 . Longest Duration 105 | . . . . . . . . 12 46 16 . 22 22 . . . . . . . . . 45 . 17 . . . 105 36 . Robots Corrupted 8 | . . . . . 1 . . . . . . . . . . . . . . . . . . . . . . . . 2 5 Combat Hostiles 7 | . . . . . 1 . . . . . . . . . . . . . . . . . . . . . . . . 2 4 Parts Fried 22 | . . . . . 4 . . . . . . . . . . . . . . . . . . . . . . . . 3 15 Impact Corruptions 2 | . . . . 1 . . . . . . . . . . . . . . . . . . . . . . . . . . 1 Robots Melted 12 | . . . . . . . . . . . . 1 1 . 1 . . 1 . . . 2 . . . 1 . . 3 2 . Combat Hostiles 12 | . . . . . . . . . . . . 1 1 . 1 . . 1 . . . 2 . . . 1 . . 3 2 . Parts Melted 72 | . . . . . . . . 1 . . . 1 7 . 1 . . 3 . 1 1 4 8 . 1 7 3 . 28 3 3 Heat Transferred 28654 | . . . . . 300 . 74 . . . . 888 2627 . 850 . 100 1050 150 200 625 1000 3550 740 1295 1530 1665 1406 7090 1887 1627 Parts Sabotaged . | . . . . . . . . . . . . . . . . . . . . . . . . . . . . . . . . Parts Stolen . | . . . . . . . . . . . . . . . . . . . . . . . . . . . . . . . . Parts Stripped . | . . . . . . . . . . . . . . . . . . . . . . . . . . . . . . . . Power Chain Reactions 8 | . . . . . 6 . . . . . . . . . . . . . . . . . . 1 . . 1 . . . . Missiles Intercepted 2 | . . . . . . . . . . . . . . . . . . . . . . . . . . . . . . 2 . Alert | -11 -10 -9 -9 -8 -8 -7 -7 -7 -7 -7 -7 -6 -6 -6 -6 -6 -5 -5 -5 -5 -5 -4 -4 -4 -4 -4 -4 -3 -3 -2 -1 ------- Run | Scr Mat Mat Min Mat Sto Fac Was Fac Low Low Zio Pro Fac Low Low Dat Pro Fac Upp Upp War Pro Fac Ext Cet Arc Hub Res Tes Res Acc Peak Influence 1523 | . 194 264 182 298 413 89 61 232 . . . . 260 . . . . 263 . . . . 481 356 650 319 915 634 522 1059 1523 Initial 597 | . . 83 62 70 . 89 31 . . . . . 57 . . . . . . . . . 69 235 128 195 43 480 135 293 597 Average 268 | . 112 159 169 122 193 89 18 108 . . . . 126 . . . . 93 . . . . 200 213 454 217 167 464 310 426 1159 Maximum Alert Level 4 | . . 1 . 1 2 . . 1 . . . . 1 . . . . 1 . . . . 2 1 2 1 3 2 2 3 4 Low Security (%) 56 | 100 100 82 100 69 53 100 100 96 . . . . 71 . . . . 94 . . . . 46 56 11 44 81 5 9 33 . Level 1 26 | . . 17 . 30 41 . . 3 . . . . 28 . . . . 5 . . . . 49 43 17 55 10 13 61 35 . Level 2 7 | . . . . . 4 . . . . . . . . . . . . . . . . . 4 . 71 . . 81 28 7 11 Level 3 4 | . . . . . . . . . . . . . . . . . . . . . . . . . . . 7 . . 24 22 Level 4 4 | . . . . . . . . . . . . . . . . . . . . . . . . . . . . . . . 65 Level 5 . | . . . . . . . . . . . . . . . . . . . . . . . . . . . . . . . . High Security . | . . . . . . . . . . . . . . . . . . . . . . . . . . . . . . . . Max Security . | . . . . . . . . . . . . . . . . . . . . . . . . . . . . . . . . Squads Dispatched 64 | . 3 2 . 2 5 1 . 3 . . . . 3 . 1 . . 2 . 1 . . 11 1 . . 7 1 9 3 9 Investigation 11 | . 1 . . 1 . . . 1 . . . . 2 . . . . . . . . . 4 . . . . . . 1 1 Extermination 15 | . . . . . . 1 . 1 . . . . 1 . . . . 2 . . . . 4 . . . . 1 3 . 2 Reinforcement 24 | . 2 2 . 1 1 . . 1 . . . . . . . . . . . . . . 3 1 . . 4 . 4 2 3 Assault 11 | . . . . . 2 . . . . . . . . . 1 . . . . 1 . . . . . . 2 . 2 . 3 Garrison 3 | . . . . . 2 . . . . . . . . . . . . . . . . . . . . . 1 . . . . Intercept . | . . . . . . . . . . . . . . . . . . . . . . . . . . . . . . . . Searches Triggered . | . . . . . . . . . . . . . . . . . . . . . . . . . . . . . . . . Data Miner Redirects 8 | . . . . . . . . . . . . . . . . . . . . . . . 4 . . . 1 . 1 . 2 Construction Impeded 3 | . . . . . . . . . . . . . . . . . . . . . . . . 1 . . 1 . 1 . . Haulers Reinforced 3 | . . . . . . . . 1 . . . . . . . . . . . . . . 1 . . . . . 1 . . Active Scanning Responses . | . . . . . . . . . . . . . . . . . . . . . . . . . . . . . . . . Cargo Convoy Interrupts 1 | . . . . . . . . . . . . . . . . . . . . . . . 1 . . . . . . . . Stealth | -11 -10 -9 -9 -8 -8 -7 -7 -7 -7 -7 -7 -6 -6 -6 -6 -6 -5 -5 -5 -5 -5 -4 -4 -4 -4 -4 -4 -3 -3 -2 -1 --------- Run | Scr Mat Mat Min Mat Sto Fac Was Fac Low Low Zio Pro Fac Low Low Dat Pro Fac Upp Upp War Pro Fac Ext Cet Arc Hub Res Tes Res Acc Distress Signals 28 | . 1 . . . 1 . . 2 . . . . 3 . . . . 1 . . 1 . 2 . 2 . 1 . 1 12 1 Communications Jammed 103 | . . . . . . . . . . . . . . . . . . . . . . . . . . . . 1 42 . 60 Distress Signals 101 | . . . . . . . . . . . . . . . . . . . . . . . . . . . . 1 42 . 58 Times Spotted 562 | . 5 19 5 22 26 . 3 27 17 9 . 11 25 1 11 . 9 19 6 12 33 17 37 13 20 18 23 11 42 43 78 Peak Tracking Total 13 | . 3 4 4 6 4 1 2 4 4 4 . 4 5 1 10 . 4 5 5 8 13 8 4 3 5 2 6 2 5 8 9 Tactical Retreats 38 | . . 1 1 2 1 . . . 1 . . 1 3 . 2 . 1 2 . 2 2 . 2 . . . 3 . 5 4 5 Traps | -11 -10 -9 -9 -8 -8 -7 -7 -7 -7 -7 -7 -6 -6 -6 -6 -6 -5 -5 -5 -5 -5 -4 -4 -4 -4 -4 -4 -3 -3 -2 -1 ------- Run | Scr Mat Mat Min Mat Sto Fac Was Fac Low Low Zio Pro Fac Low Low Dat Pro Fac Upp Upp War Pro Fac Ext Cet Arc Hub Res Tes Res Acc Traps Triggered 16 | . 3 1 . . 1 1 . 1 . . . . 1 . . . . . . . . . 2 2 . . . 1 2 . 1 Indirectly . | . . . . . . . . . . . . . . . . . . . . . . . . . . . . . . . . Trap Hack Attempts . | . . . . . . . . . . . . . . . . . . . . . . . . . . . . . . . . Triggered . | . . . . . . . . . . . . . . . . . . . . . . . . . . . . . . . . Disarmed . | . . . . . . . . . . . . . . . . . . . . . . . . . . . . . . . . Reprogrammed . | . . . . . . . . . . . . . . . . . . . . . . . . . . . . . . . . Reused . | . . . . . . . . . . . . . . . . . . . . . . . . . . . . . . . . Traps Extracted . | . . . . . . . . . . . . . . . . . . . . . . . . . . . . . . . . Installed . | . . . . . . . . . . . . . . . . . . . . . . . . . . . . . . . . Triggered 9 | . . . . . . . . . . . . . . . . . . . . . 8 . 1 . . . . . . . . Machines | -11 -10 -9 -9 -8 -8 -7 -7 -7 -7 -7 -7 -6 -6 -6 -6 -6 -5 -5 -5 -5 -5 -4 -4 -4 -4 -4 -4 -3 -3 -2 -1 ---------- Run | Scr Mat Mat Min Mat Sto Fac Was Fac Low Low Zio Pro Fac Low Low Dat Pro Fac Upp Upp War Pro Fac Ext Cet Arc Hub Res Tes Res Acc Machines Disabled 56 | . . . . 1 7 . . . . . . . . . 2 . . 1 . . . . 5 3 4 2 13 1 8 8 1 Max in Single Turn 8 | . . . . 1 3 . . . . . . . . . 1 . . 1 . . . . 4 . 1 1 8 1 1 2 1 Garrison Access 6 | . . . . . 1 . . . . . . . . . . . . 1 . . . . 1 . . . 1 . . 2 . Network Hub 2 | . . . . . . . . . . . . . . . . . . . . . . . . . . . 2 . . . . Machines Sabotaged . | . . . . . . . . . . . . . . . . . . . . . . . . . . . . . . . . Garrisons Compromised 1 | . . . . . . . . . . . . . . . . . . . . . . . 1 . . . . . . . . Overloaded Fab Kills . | . . . . . . . . . . . . . . . . . . . . . . . . . . . . . . . . Hacking | -11 -10 -9 -9 -8 -8 -7 -7 -7 -7 -7 -7 -6 -6 -6 -6 -6 -5 -5 -5 -5 -5 -4 -4 -4 -4 -4 -4 -3 -3 -2 -1 --------- Run | Scr Mat Mat Min Mat Sto Fac Was Fac Low Low Zio Pro Fac Low Low Dat Pro Fac Upp Upp War Pro Fac Ext Cet Arc Hub Res Tes Res Acc Machines Accessed 74 | . 5 3 . 5 12 2 . 2 . 1 . . 3 1 1 3 . 7 . . 1 . 10 . . . 2 4 7 2 3 Terminals 38 | . 4 2 . 3 8 . . . . . . . . . . . . 5 . . . . 4 . . . 1 4 4 1 2 Fabricators 6 | . . . . . . . . . . . . . 2 . . . . . . . . . 2 . . . . . 2 . . Repair Stations 9 | . . . . . 2 . . 1 . . . . . . . . . 1 . . . . 3 . . . . . 1 . 1 Recycling Units 4 | . 1 . . 1 1 1 . . . . . . . . . . . . . . . . . . . . . . . . . Scanalyzers 4 | . . 1 . 1 . . . 1 . . . . 1 . . . . . . . . . . . . . . . . . . Garrison Access 6 | . . . . . 1 1 . . . . . . . . . . . 1 . . . . 1 . . . 1 . . 1 . Total Hacks 221 | . 16 7 . 18 23 2 . 5 . 1 . . 9 8 1 20 . 11 . . 4 . 27 . . . 5 21 27 3 13 Successful 103 | . 7 4 . 9 9 1 . 1 . 1 . . 5 8 1 20 . 5 . . 4 . 14 . . . 2 5 4 1 2 Failed 117 | . 8 3 . 9 14 1 . 4 . . . . 4 . . . . 6 . . . . 13 . . . 3 16 23 2 11 Catastrophic 21 | . 1 . . . 4 1 . . . . . . 1 . . . . . . . . . 1 . . . 1 5 5 1 1 Database Lockouts 1 | . 1 . . . . . . . . . . . . . . . . . . . . . . . . . . . . . . Manual 49 | . 15 3 . 1 5 1 . . . . . . 2 . . . . . . . 1 . 2 . . . 2 13 . 1 3 Terminals 116 | . 15 5 . 9 14 . . . . . . . . . . . . 9 . . . . 11 . . . 3 21 18 2 9 Fabricators 20 | . . . . . . . . . . . . . 8 . . . . . . . . . 5 . . . . . 7 . . Repair Stations 23 | . . . . . 5 . . 2 . . . . . . . . . 1 . . . . 9 . . . . . 2 . 4 Recycling Units 4 | . 1 . . 1 1 1 . . . . . . . . . . . . . . . . . . . . . . . . . Scanalyzers 14 | . . 2 . 8 . . . 3 . . . . 1 . . . . . . . . . . . . . . . . . . Garrison Access 10 | . . . . . 3 1 . . . . . . . . . . . 1 . . . . 2 . . . 2 . . 1 . Terminal Hacks 69 | . 5 2 . 4 6 . . . . 1 . . . 8 1 20 . 4 . . 4 . 5 . . . 1 5 2 . 1 Record 11 | . . . . . . . . . . . . . . 8 . 2 . 1 . . . . . . . . . . . . . Part Schematic 12 | . 3 . . . . . . . . . . . . . . 8 . . . . . . . . . . . 1 . . . Robot Schematic 7 | . . . . . . . . . . . . . . . . 7 . . . . . . . . . . . . . . . Robot Analysis 4 | . 1 1 . . . . . . . . . . . . . . . . . . . . 1 . . . . . 1 . . Prototype ID Bank 10 | . 1 . . . . . . . . . . . . . . 3 . . . . 4 . . . . . . 1 1 . . Open Door 5 | . . . . . 3 . . . . 1 . . . . 1 . . . . . . . . . . . . . . . . Branch Access Points 4 | . . 1 . 1 . . . . . . . . . . . . . 1 . . . . 1 . . . . . . . . Alert Level 1 | . . . . . . . . . . . . . . . . . . . . . . . . . . . . 1 . . . Unreport Threat 8 | . . . . 3 1 . . . . . . . . . . . . . . . . . 2 . . . . 2 . . . Locate Traps 3 | . . . . . 2 . . . . . . . . . . . . 1 . . . . . . . . . . . . . Zone Layout 4 | . . . . . . . . . . . . . . . . . . 1 . . . . 1 . . . 1 . . . 1 Fabricator Hacks 9 | . . . . . . . . . . . . . 5 . . . . . . . . . 3 . . . . . 1 . . Network Status 4 | . . . . . . . . . . . . . 2 . . . . . . . . . 1 . . . . . 1 . . Load Schematic 3 | . . . . . . . . . . . . . 2 . . . . . . . . . 1 . . . . . . . . Build 2 | . . . . . . . . . . . . . 1 . . . . . . . . . 1 . . . . . . . . Repair Station Hacks 7 | . . . . . 1 . . . . . . . . . . . . . . . . . 5 . . . . . 1 . . Scan Component 5 | . . . . . 1 . . . . . . . . . . . . . . . . . 3 . . . . . 1 . . Repair 2 | . . . . . . . . . . . . . . . . . . . . . . . 2 . . . . . . . . Recycling Unit Hacks . | . . . . . . . . . . . . . . . . . . . . . . . . . . . . . . . . Scanalyzer 7 | . . 2 . 4 . . . 1 . . . . . . . . . . . . . . . . . . . . . . . Insert Component 3 | . . 1 . 1 . . . 1 . . . . . . . . . . . . . . . . . . . . . . . Analyze 4 | . . 1 . 3 . . . . . . . . . . . . . . . . . . . . . . . . . . . Garrison Access Hacks 4 | . . . . . 1 . . . . . . . . . . . . 1 . . . . 1 . . . . . . 1 . Seal Access 4 | . . . . . 1 . . . . . . . . . . . . 1 . . . . 1 . . . . . . 1 . Unauthorized Hacks 7 | . 2 . . 1 1 1 . . . . . . . . . . . . . . . . . . . . 1 . . . 1 Terminals 3 | . 1 . . . . . . . . . . . . . . . . . . . . . . . . . 1 . . . 1 Botnet 3 | . 1 . . . . . . . . . . . . . . . . . . . . . . . . . 1 . . . 1 Fabricators . | . . . . . . . . . . . . . . . . . . . . . . . . . . . . . . . . Repair Stations . | . . . . . . . . . . . . . . . . . . . . . . . . . . . . . . . . Recycling Units 4 | . 1 . . 1 1 1 . . . . . . . . . . . . . . . . . . . . . . . . . Recyclers 1 | . . . . . . 1 . . . . . . . . . . . . . . . . . . . . . . . . . Mask 2 | . . . . 1 1 . . . . . . . . . . . . . . . . . . . . . . . . . . Tunnel 1 | . 1 . . . . . . . . . . . . . . . . . . . . . . . . . . . . . . Scanalyzers . | . . . . . . . . . . . . . . . . . . . . . . . . . . . . . . . . Garrison Access . | . . . . . . . . . . . . . . . . . . . . . . . . . . . . . . . . Data Cores Recovered . | . . . . . . . . . . . . . . . . . . . . . . . . . . . . . . . . Used . | . . . . . . . . . . . . . . . . . . . . . . . . . . . . . . . . Hacking Detections 58 | . 4 4 . 4 8 1 . 2 . . . . 3 . . . . 5 . . . . 10 . . . 2 4 7 1 3 Full Trace Events 11 | . 1 . . 1 . . . 1 . . . . 2 . . . . . . . . . 4 . . . . . . 1 1 Feedback Events 2 | . . . . . . . . 1 . . . . . . . . . . . . . . . . . . . . . 1 . Corruption 2 | . . . . . . . . 1 . . . . . . . . . . . . . . . . . . . . . 1 . Feedback Blocked . | . . . . . . . . . . . . . . . . . . . . . . . . . . . . . . . . Robot Schematics Acquired 7 | . . . . . . . . . . . . . . . . 7 . . . . . . . . . . . . . . . Robots Built . | . . . . . . . . . . . . . . . . . . . . . . . . . . . . . . . . Authchips . | . . . . . . . . . . . . . . . . . . . . . . . . . . . . . . . . Time . | . . . . . . . . . . . . . . . . . . . . . . . . . . . . . . . . Total Robot Build Rating . | . . . . . . . . . . . . . . . . . . . . . . . . . . . . . . . . Part Schematics Acquired 13 | . 3 1 . . . . . . . . . . . . . 8 . . . . . . . . . . . 1 . . . Parts Built 2 | . . . . . . . . . . . . . 1 . . . . . . . . . 1 . . . . . . . . Authchips . | . . . . . . . . . . . . . . . . . . . . . . . . . . . . . . . . Time 102 | . . . . . . . . . . . . . 51 . . . . . . . . . 51 . . . . . . . . Total Part Build Rating 2 | . . . . . . . . . . . . . 1 . . . . . . . . . 1 . . . . . . . . Parts Repaired 2 | . . . . . . . . . . . . . . . . . . . . . . . 2 . . . . . . . . Time 67 | . . . . . . . . . . . . . . . . . . . . . . . 67 . . . . . . . . Parts Recycled . | . . . . . . . . . . . . . . . . . . . . . . . . . . . . . . . . Recycled Matter . | . . . . . . . . . . . . . . . . . . . . . . . . . . . . . . . . Retrieved Matter . | . . . . . . . . . . . . . . . . . . . . . . . . . . . . . . . . Retrieved Components . | . . . . . . . . . . . . . . . . . . . . . . . . . . . . . . . . Parts Scanalyzed 3 | . . 1 . 1 . . . 1 . . . . . . . . . . . . . . . . . . . . . . . Part Schematics Acquired 1 | . . 1 . . . . . . . . . . . . . . . . . . . . . . . . . . . . . Parts Damaged . | . . . . . . . . . . . . . . . . . . . . . . . . . . . . . . . . Bothacking | -11 -10 -9 -9 -8 -8 -7 -7 -7 -7 -7 -7 -6 -6 -6 -6 -6 -5 -5 -5 -5 -5 -4 -4 -4 -4 -4 -4 -3 -3 -2 -1 ------------ Run | Scr Mat Mat Min Mat Sto Fac Was Fac Low Low Zio Pro Fac Low Low Dat Pro Fac Upp Upp War Pro Fac Ext Cet Arc Hub Res Tes Res Acc Used RIF Installer . | . . . . . . . . . . . . . . . . . . . . . . . . . . . . . . . . Robots Hacked . | . . . . . . . . . . . . . . . . . . . . . . . . . . . . . . . . Non-combat . | . . . . . . . . . . . . . . . . . . . . . . . . . . . . . . . . Combat . | . . . . . . . . . . . . . . . . . . . . . . . . . . . . . . . . Robot Hacks Applied . | . . . . . . . . . . . . . . . . . . . . . . . . . . . . . . . . Relay Couplers Released 13 | . . . . . . . . . . . . . . . . . . . . . . . 3 . . . 4 3 . 3 . Machine Destruction 10 | . . . . . . . . . . . . . . . . . . . . . . . 3 . . . 4 . . 3 . Programmers 3 | . . . . . . . . . . . . . . . . . . . . . . . . . . . . 3 . . . Fabnet Peak Effective % . | . . . . . . . . . . . . . . . . . . . . . . . . . . . . . . . . Robots Rewired 11 | . . . . . . . . . . . . . . . . . . . . . 3 . . 8 . . . . . . . Allies Hacked 2 | . . . . . . . . 1 . . . 1 . . . . . . . . . . . . . . . . . . . Hacks Repelled . | . . . . . . . . . . . . . . . . . . . . . . . . . . . . . . . . Allies | -11 -10 -9 -9 -8 -8 -7 -7 -7 -7 -7 -7 -6 -6 -6 -6 -6 -5 -5 -5 -5 -5 -4 -4 -4 -4 -4 -4 -3 -3 -2 -1 -------- Run | Scr Mat Mat Min Mat Sto Fac Was Fac Low Low Zio Pro Fac Low Low Dat Pro Fac Upp Upp War Pro Fac Ext Cet Arc Hub Res Tes Res Acc Total Allies 53 | . . . . . 12 . 19 . . . 3 . . 2 . . 1 . . . 3 . . 13 . . . . . . . Largest Group 19 | . . . . . 12 . 19 9 1 1 4 4 1 2 . . . . . . 3 1 . 13 7 . . . . . . Highest-Rated Group 684 | . . . . . 235 . 475 274 22 22 106 106 22 50 . . . . . . 160 65 . 684 315 . . . . . . Highest-Rated Ally 159 | . . . . . 31 . 35 35 22 22 31 31 22 25 . . . . . . 65 65 . 159 51 . . . . . . Total Orders 17 | . . . . . . . . . . . . . 3 . . . 1 9 . . 2 . 2 . . . . . . . . STAY 1 | . . . . . . . . . . . . . . . . . . . . . 1 . . . . . . . . . . FOLLOW 1 | . . . . . . . . . . . . . . . . . . . . . 1 . . . . . . . . . . EXPLORE 2 | . . . . . . . . . . . . . . . . . . 2 . . . . . . . . . . . . . RETURN 13 | . . . . . . . . . . . . . 3 . . . 1 7 . . . . 2 . . . . . . . . Ally Attacks 430 | . . . . . 32 . 116 31 . . . 40 . 5 . . 1 . . . 10 . . 97 98 . . . . . . Total Damage 10723 | . . . . . 467 . 3669 588 . . . 720 . 168 . . 45 . . . 231 . . 2769 2066 . . . . . . Kills 56 | . . . . . 3 . 13 6 . . . 5 . 1 . . . . . . 1 . . 11 16 . . . . . . Allies Corrupted . | . . . . . . . . . . . . . . . . . . . . . . . . . . . . . . . . Allies Melted . | . . . . . . . . . . . . . . . . . . . . . . . . . . . . . . . . Intel | -11 -10 -9 -9 -8 -8 -7 -7 -7 -7 -7 -7 -6 -6 -6 -6 -6 -5 -5 -5 -5 -5 -4 -4 -4 -4 -4 -4 -3 -3 -2 -1 ------- Run | Scr Mat Mat Min Mat Sto Fac Was Fac Low Low Zio Pro Fac Low Low Dat Pro Fac Upp Upp War Pro Fac Ext Cet Arc Hub Res Tes Res Acc Robot Analysis Total 4 | . 1 1 . . . . . . . . . . . . . . . . . . . . 1 . . . . . 1 . . Derelict Logs Recovered 16 | . . . 2 . . . . . 2 3 2 3 . 2 . . 1 . . . . 1 . . . . . . . . . Drone Launches 15 | . . . . . . . . . . . . . 3 . . . 1 9 . . . . 2 . . . . . . . . Drone Recoveries 15 | . . . . . . . . . . . . . 3 . . . 1 9 . . . . 2 . . . . . . . . Exploration | -11 -10 -9 -9 -8 -8 -7 -7 -7 -7 -7 -7 -6 -6 -6 -6 -6 -5 -5 -5 -5 -5 -4 -4 -4 -4 -4 -4 -3 -3 -2 -1 ------------- Run | Scr Mat Mat Min Mat Sto Fac Was Fac Low Low Zio Pro Fac Low Low Dat Pro Fac Upp Upp War Pro Fac Ext Cet Arc Hub Res Tes Res Acc Turns Passed 29752 | 26 298 1526 398 1628 1083 255 778 1202 917 761 2177 1016 994 410 602 105 417 1562 443 502 1667 944 2219 1007 414 685 533 565 1306 2007 1305 Spaces Moved 14939 | 36 401 584 160 801 524 156 420 633 469 425 906 539 488 339 369 84 270 778 202 253 806 446 1054 523 177 269 190 299 541 1033 764 Core 839 | 36 381 77 . . . . . . . . . . . . . . . . . . . . . . . . . . . . 345 Treads 7661 | . 20 507 160 801 524 156 420 633 469 220 906 164 14 . 3 . . . . . . . 990 523 177 130 70 . 81 560 133 Legs 610 | . . . . . . . . . . . . . . . . . . . . . 100 446 64 . . . . . . . . Wheels 5805 | . . . . . . . . . . 205 . 375 474 339 366 84 270 778 202 253 706 . . . . 139 120 299 460 473 262 Hover . | . . . . . . . . . . . . . . . . . . . . . . . . . . . . . . . . Flight 24 | . . . . . . . . . . . . . . . . . . . . . . . . . . . . . . . 24 Fastest Speed 22 | 50 50 50 240 160 160 160 160 160 160 130 240 130 115 116 120 120 135 135 190 190 175 176 158 158 158 146 115 119 119 145 22 Average Speed 163 | 50 55 217 240 160 160 160 160 160 160 164 240 172 138 116 131 121 135 178 190 190 187 176 160 158 167 190 174 125 134 161 118 Slowest Speed 400 | 50 160 320 240 160 160 160 240 160 160 240 240 240 240 125 400 135 135 205 190 190 190 176 176 158 238 305 240 170 245 250 320 Overloaded Moves . | . . . . . . . . . . . . . . . . . . . . . . . . . . . . . . . . Propulsion Burnouts . | . . . . . . . . . . . . . . . . . . . . . . . . . . . . . . . . Robots Hopped . | . . . . . . . . . . . . . . . . . . . . . . . . . . . . . . . . Cave-ins Triggered 1 | . . . . . . . . . . . . . . . . . . . . . . . . . . . . . 1 . . Exploration Rate (%) 48 | 3 84 46 38 40 64 5 96 14 60 64 85 64 15 52 55 69 34 24 45 42 84 67 24 63 61 80 24 8 72 47 23 Regions Visited 31 Branch Regions 19 Pre-discovered Areas 6 | . 1 . 1 . . . . . . 1 2 . . . . 1 . . . . . . . . . . . . . . . Known Exits Taken 14 | . . 1 . 1 . . . . . . . 1 1 . . . 1 1 . . . 1 1 1 1 1 1 1 . 1 . Unknown Exits Taken 15 | 1 1 . 1 . 1 . . 1 1 1 1 . . 1 1 1 . . 1 1 1 . . . . . . . 1 . . Scrap Searched 23 | . . . 1 . . . . . 2 7 3 3 . . 4 . 1 . . . . 2 . . . . . . . . . Spaces Dug 188 | . . . . 2 . . 14 8 12 . . 4 5 . 18 . 15 23 11 6 13 13 23 . . . 5 1 11 . 4 Terrain Destroyed 1322 | . . . . 2 48 . 14 8 67 40 . 17 8 . 112 . 22 45 16 26 18 79 84 4 6 2 364 7 50 150 133 Melee 24 | . . . . 2 . . 3 . . . . . 5 . 1 . . . . . 8 . 1 . . . . . . . 4 Projectile 229 | . . . . . . . 11 . . . . 2 3 . 12 . 12 26 5 4 10 15 46 4 6 2 26 7 16 15 7 AOE 1069 | . . . . . 48 . . 8 67 40 . 15 . . 99 . 10 19 11 22 . 64 37 . . . 338 . 34 135 122 Terrain Rammed . | . . . . . . . . . . . . . . . . . . . . . . . . . . . . . . . . Walls Destroyed . | . . . . . . . . . . . . . . . . . . . . . . . . . . . . . . . . Machines Disabled . | . . . . . . . . . . . . . . . . . . . . . . . . . . . . . . . . Actions | -11 -10 -9 -9 -8 -8 -7 -7 -7 -7 -7 -7 -6 -6 -6 -6 -6 -5 -5 -5 -5 -5 -4 -4 -4 -4 -4 -4 -3 -3 -2 -1 --------- Run | Scr Mat Mat Min Mat Sto Fac Was Fac Low Low Zio Pro Fac Low Low Dat Pro Fac Upp Upp War Pro Fac Ext Cet Arc Hub Res Tes Res Acc Total 18246 | 41 453 726 166 1007 706 164 513 749 567 471 911 584 692 354 439 87 307 900 252 262 914 543 1375 651 244 360 280 400 866 1231 1031 Wait 1004 | . 29 29 1 65 88 . 43 40 27 8 . 8 101 5 12 . 12 44 43 . 11 33 145 37 17 20 11 39 88 9 39 Move 14908 | 35 400 583 159 800 523 156 419 632 468 424 905 538 487 338 368 83 269 777 201 252 805 445 1053 522 176 268 189 298 539 1032 764 Hop . | . . . . . . . . . . . . . . . . . . . . . . . . . . . . . . . . Pick Up 155 | 2 4 18 1 18 10 2 5 2 4 6 2 1 5 2 3 . 1 6 . . 4 3 8 2 2 4 3 5 15 10 7 Fast Attach 234 | 4 2 5 . 1 8 3 5 5 . 3 1 4 10 2 8 2 5 6 . . 10 2 11 5 7 11 9 4 28 35 38 Attach 91 | . . 4 . 7 5 . . . 3 . . 2 5 . 4 . . 3 1 . 1 . 4 . . 7 3 3 20 8 11 Detach 48 | . 1 2 . 2 2 . . 1 . . . . 3 . 2 . . 1 . . 1 . 4 . . 3 3 1 6 8 8 Swap 198 | . 1 8 . 13 12 . 5 5 5 4 . 3 18 1 7 . 3 12 2 2 6 19 19 4 4 3 1 7 11 18 5 Drop 232 | . 3 9 . 22 19 3 18 4 2 8 3 4 9 5 4 2 6 10 . . 12 5 12 7 10 3 3 1 20 23 5 Fire 1191 | . 13 68 5 76 38 . 15 60 58 18 . 24 46 1 30 . 11 41 5 8 19 31 90 24 28 29 58 37 128 88 142 Melee 97 | . . . . 2 1 . 3 . . . . . 8 . 1 . . . . . 11 5 29 . . 12 . 5 10 . 10 Ram 2 | . . . . . . . . . . . . . . . . . . . . . . . . . . . . . . . 2 Kick . | . . . . . . . . . . . . . . . . . . . . . . . . . . . . . . . . Crush 2 | . . . . 1 . . . . . . . . . . . . . . . . . . . 1 . . . . . . . Escape Stasis 1 | . . . . . . . . . . . . . . . . . . . . . . . . . . . . . 1 . . Rewire 83 | . . . . . . . . . . . . . . . . . . . . . 34 . . 49 . . . . . . . Trap . | . . . . . . . . . . . . . . . . . . . . . . . . . . . . . . . . Miscellaneous . | . . . . . . . . . . . . . . . . . . . . . . . . . . . . . . . . Route ------- -11/Scrapyard -10/Materials (discovered 3 exits: *Mat x2 / [*Min]) -9/Materials (discovered 3 exits: *Mat / *Min x2) -9/Mines -8/Materials (discovered 2 exits: *Fac / *Sto) -8/Storage -7/Factory -7/Waste -7/Factory (discovered 2 exits: *Fac / [*Low]) -7/Lower Caves -7/Lower Caves -7/Zion -6/Proximity Caves -6/Factory (discovered 3 exits: Fac / *Low x2) -6/Lower Caves -6/Lower Caves -6/Data Miner -5/Proximity Caves -5/Factory (discovered 3 exits: *Fac / *Upp x2) -5/Upper Caves -5/Upper Caves -5/Warlord -4/Proximity Caves -4/Factory (discovered 6 exits: *Res / Upp x2 / *Ext x2 / Arm) -4/Extension (discovered 2 exits: *Res / *Cet) -4/Cetus (discovered 2 exits: *Res / *Arc) -4/Archives (discovered 3 exits: *Res / *Hub x2) -4/Hub_04(d) -3/Research (discovered 2 exits: *Tes x2) -3/Testing -2/Research (discovered 2 exits: *Acc x2) -1/Access (discovered 1 exit: [*Com]) History --------- Turn | Location | Event 11 | -11/Scrapyard | Discovered new exit (range 16) 27 | -11/Scrapyard | Entered Materials 218 | -10/Materials | Discovered new exit (range 14) 274 | -10/Materials | Discovered new exit (range 9) 279 | -10/Materials | Central database locked down 302 | -10/Materials | Discovered new exit (range 6) 316 | -10/Materials | Build established: Mutant 325 | -10/Materials | Entered another Materials area 325 | -9/Materials | Evolved 2 slots: Utility x2 838 | -9/Materials | Lost 3 parts (2u1w) 1094 | -9/Materials | Build established: Scavenger-Mutant 1157 | -9/Materials | Identified exit to Mines 1595 | -9/Materials | Discovered new exit (range 15) 1851 | -9/Materials | Entered Mines 1971 | -9/Mines | Assembled infested the area 1976 | -9/Mines | Assisted by a Guerilla fighting off Assembled 2145 | -9/Mines | Found a damaged Exp. Sensor Array with a note attached 2150 | -9/Mines | Found Prototype Device 2167 | -9/Mines | Discovered new exit (range 14) 2187 | -9/Mines | Learned Materials trap positions 2194 | -9/Mines | Learned location of Storage (-8) 2249 | -9/Mines | Entered Materials 2249 | -8/Materials | Evolved 2 slots: Propulsion x2 2250 | -8/Materials | Loaded intel: 19 trap records 2286 | -8/Materials | Identified Exp. Sensor Array 2453 | -8/Materials | Discovered new exit (range 16) 2603 | -8/Materials | Discovered new exit (range 16) 3246 | -8/Materials | Identified exit to Storage 3877 | -8/Materials | Entered Storage 4491 | -8/Storage | Garrison activated, responded to threat 4563 | -8/Storage | Discovered new exit (range 14) 4648 | -8/Storage | Lost 5 parts (1n2u2w) 4707 | -8/Storage | Assisted by bots powering up and referring to "LRC-V3" 4822 | -8/Storage | Met a pair of Derelict thieves 4960 | -8/Storage | Entered Factory 4960 | -7/Factory | Evolved 2 slots: Power x1, Utility x1 5209 | -7/Factory | Discovered new exit (range 16) 5215 | -7/Factory | Sucked down chute 5215 | -7/Factory | Entered Waste 5229 | -7/Waste | Spotted C-40 Crusher 5275 | -7/Waste | Spotted C-40 Crusher 5340 | -7/Waste | Spotted C-40 Crusher 5446 | -7/Waste | Spotted C-40 Crusher 5518 | -7/Waste | Discovered new exit (range 10) 5531 | -7/Waste | Warlord forces began an assault 5543 | -7/Waste | Allies destroyed C-40 Crusher 5544 | -7/Waste | Spotted C-40 Crusher 5549 | -7/Waste | Allies destroyed C-40 Crusher 5578 | -7/Waste | Allies destroyed C-40 Crusher 5586 | -7/Waste | Spotted C-40 Crusher 5590 | -7/Waste | Allies destroyed C-40 Crusher 5635 | -7/Waste | Found Damper Plating 5652 | -7/Waste | Allies destroyed C-40 Crusher 5939 | -7/Waste | Build established: Mutant 5993 | -7/Waste | Entered Factory 5993 | -7/Factory | Accompanied by 9 allies 6093 | -7/Factory | Discovered new exit (range 5) 6622 | -7/Factory | Identified exit to Factory 6759 | -7/Factory | Discovered new exit (range 6) 7195 | -7/Factory | Entered Lower Caves 7195 | -7/Lower Caves | Accompanied by 1 ally 7299 | -7/Lower Caves | Encountered a Warlord checkpoint 7402 | -7/Lower Caves | Build established: Scavenger-Mutant 7540 | -7/Lower Caves | Learned Factory emergency access door positions 7608 | -7/Lower Caves | Learned 4 Factory zone layouts 8062 | -7/Lower Caves | Discovered new exit (range 3) 8112 | -7/Lower Caves | Entered another Lower Caves area 8112 | -7/Lower Caves | Accompanied by 1 ally 8459 | -7/Lower Caves | Attracted the attention of an 0b10 checkpoint 8584 | -7/Lower Caves | Learned location of Zion (-7) 8601 | -7/Lower Caves | Build established: Mutant 8755 | -7/Lower Caves | Learned Factory terminal intel 8822 | -7/Lower Caves | Discovered new exit (range 15) 8873 | -7/Lower Caves | Entered Zion 8873 | -7/Zion | Accompanied by 1 ally 8981 | -7/Zion | Discovered new exit (range 12) 9184 | -7/Zion | Found CR-A16's Pointy Stick 9302 | -7/Zion | Learned location of Warlord (-5) 9350 | -7/Zion | Gained Derelict followers 9468 | -7/Zion | Given the Hacking Drone Bay 9468 | -7/Zion | Found Prototype Device 10232 | -7/Zion | Loaded intel: 4 derelict terminal locations 10254 | -7/Zion | Learned Factory terminal intel 10266 | -7/Zion | Learned 4 Factory zone layouts 11050 | -7/Zion | Entered Proximity Caves 11050 | -6/Proximity Caves | Accompanied by 4 allies 11070 | -6/Proximity Caves | Learned Factory terminal intel 11995 | -6/Proximity Caves | Attracted the attention of an 0b10 checkpoint 12066 | -6/Proximity Caves | Entered Factory 12066 | -6/Factory | Accompanied by 1 ally 12066 | -6/Factory | Evolved 2 slots: Utility x2 12067 | -6/Factory | Identified exit to Lower Caves 12068 | -6/Factory | Identified exit to Factory 12070 | -6/Factory | Loaded intel: 26 terminal locations 12144 | -6/Factory | Identified Hacking Drone Bay 12292 | -6/Factory | Fabricated Seismic Detector (x1) 12950 | -6/Factory | Lost 3 parts (1n2u) 13014 | -6/Factory | Build established: Scavenger-Mutant 13060 | -6/Factory | Entered Lower Caves 13145 | -6/Lower Caves | Learned 8 Research zone layouts 13145 | -6/Lower Caves | Learned Extension trap positions 13145 | -6/Lower Caves | Learned Armory emergency access door positions 13145 | -6/Lower Caves | Learned Extension stockpile data 13145 | -6/Lower Caves | A Commander dispatched an escort 13260 | -6/Lower Caves | Learned Factory terminal intel 13265 | -6/Lower Caves | Learned Factory terminal intel 13295 | -6/Lower Caves | Encountered a Warlord checkpoint 13417 | -6/Lower Caves | Attracted the attention of an 0b10 checkpoint 13444 | -6/Lower Caves | Discovered new exit (range 12) 13470 | -6/Lower Caves | Entered another Lower Caves area 13470 | -6/Lower Caves | Accompanied by 2 allies 13471 | -6/Lower Caves | Commander's escort returned to base 13471 | -6/Lower Caves | Commander's escort returned to base 13685 | -6/Lower Caves | Attracted the attention of an 0b10 outpost 13770 | -6/Lower Caves | Lost 6 parts (2p2n1u1w) 14043 | -6/Lower Caves | Discovered new exit (range 12) 14072 | -6/Lower Caves | Entered Data Miner 14072 | -6/Data Miner | Discovered new exit (range 6) 14097 | -6/Data Miner | Met Data Miner 14121 | -6/Data Miner | Learned location of Section 7 (-2) 14121 | -6/Data Miner | Acquired the access code to Warlord's prototype stash 14137 | -6/Data Miner | Received God Mode back door access code from Data Miner 14177 | -6/Data Miner | Entered Proximity Caves 14193 | -5/Proximity Caves | Build established: Derelict-Mutant 14488 | -5/Proximity Caves | Found Prototype Device 14488 | -5/Proximity Caves | Identified Exp. Thermal Shield 14544 | -5/Proximity Caves | Discovered exit to Factory (range 13) 14569 | -5/Proximity Caves | Learned Factory stockpile data 14594 | -5/Proximity Caves | Entered Factory 14594 | -5/Factory | Evolved 2 slots: Utility x2 14596 | -5/Factory | Loaded intel: 25 terminal locations 14724 | -5/Factory | Discovered new exit (range 5) 14730 | -5/Factory | Identified exit to Factory 15629 | -5/Factory | Identified exit to Upper Caves 16156 | -5/Factory | Entered Upper Caves 16344 | -5/Upper Caves | Build established: Scavenger-Mutant 16582 | -5/Upper Caves | Discovered new exit (range 3) 16599 | -5/Upper Caves | Entered another Upper Caves area 16974 | -5/Upper Caves | Discovered new exit (range 12) 17067 | -5/Upper Caves | Attracted the attention of an 0b10 outpost 17101 | -5/Upper Caves | Entered Warlord 17151 | -5/Warlord | Discovered new exit (range 15) 17837 | -5/Warlord | Build established: Derelict-Mutant 18185 | -5/Warlord | Warlord's base attacked by MAIN.C 18315 | -5/Warlord | Met Warlord 18334 | -5/Warlord | Opened Warlord's prototype stash 18359 | -5/Warlord | Found Prototype Device 18359 | -5/Warlord | Identified Exp. Cloaking Device 18368 | -5/Warlord | Found Prototype Device 18368 | -5/Warlord | Identified Thermal Barrier 18381 | -5/Warlord | Found Prototype Reactor 18526 | -5/Warlord | Spotted B-75 Beast 18528 | -5/Warlord | Spotted B-86 Titan 18535 | -5/Warlord | Warlord forces counterattacked 18549 | -5/Warlord | Spotted Striker 18588 | -5/Warlord | Spotted Striker 18604 | -5/Warlord | Spotted Executioner 18634 | -5/Warlord | Destroyed Executioner 18688 | -5/Warlord | Spotted Striker 18688 | -5/Warlord | Spotted Executioner 18689 | -5/Warlord | Spotted Striker 18768 | -5/Warlord | Entered Proximity Caves 18768 | -4/Proximity Caves | Accompanied by 1 ally 18779 | -4/Proximity Caves | Attracted the attention of an 0b10 checkpoint 19013 | -4/Proximity Caves | Spotted B-86 Titan 19114 | -4/Proximity Caves | Revealed the true nature of CR-A16's Pointy Stick 19117 | -4/Proximity Caves | Destroyed B-86 Titan 19456 | -4/Proximity Caves | Build established: Scavenger-Mutant 19573 | -4/Proximity Caves | Destroyed 7 combat bots 19591 | -4/Proximity Caves | Learned location of 1 exit from Research 19635 | -4/Proximity Caves | Discovered exit to Factory (range 9) 19712 | -4/Proximity Caves | Entered Factory 19712 | -4/Factory | Evolved 2 slots: Propulsion x2 19713 | -4/Factory | Loaded intel: 28 terminal locations 19788 | -4/Factory | Spotted B-86 Titan 19845 | -4/Factory | Destroyed B-86 Titan 19874 | -4/Factory | Lost 3 parts (2u1w) 20148 | -4/Factory | Repaired Arm. Medium Treads 20325 | -4/Factory | Incoming investigation squad redirected 20517 | -4/Factory | Incoming investigation squad redirected 20536 | -4/Factory | Repaired Broken Adv. Cooling System 20599 | -4/Factory | Discovered new exit (range 16) 20627 | -4/Factory | Identified exit to Research 20770 | -4/Factory | Fabricated Seismic Detector? 21100 | -4/Factory | Incoming investigation squad redirected 21214 | -4/Factory | Identified exit to Upper Caves 21214 | -4/Factory | Identified exit to Extension 21214 | -4/Factory | Identified exit to Armory 21674 | -4/Factory | Cargo convoy interrupted 21698 | -4/Factory | Incoming assault squad redirected 21931 | -4/Factory | Entered Extension 21932 | -4/Extension | Loaded intel: 18 trap records 22223 | -4/Extension | Rescued A7 22382 | -4/Extension | Rescued a captive Derelict 22383 | -4/Extension | Rescued a captive Derelict 22524 | -4/Extension | Rescued a captive Derelict 22525 | -4/Extension | Rescued a captive Derelict 22698 | -4/Extension | Spotted B-86 Titan 22713 | -4/Extension | Allies destroyed B-86 Titan 22721 | -4/Extension | Spotted B-86 Titan 22741 | -4/Extension | Destroyed B-86 Titan 22890 | -4/Extension | Discovered new exit (range 15) 22894 | -4/Extension | Discovered exit to Research (range 15) 22905 | -4/Extension | Extracted ID and sensor layout for unrecognized location from A7's data core 22935 | -4/Extension | Identified exit to Cetus 22938 | -4/Extension | Entered Cetus 22938 | -4/Cetus | Accompanied by 7 allies 22959 | -4/Cetus | Spotted Cetus Guard 22959 | -4/Cetus | Spotted Cetus Guard 22964 | -4/Cetus | Spotted Cetus Guard 22967 | -4/Cetus | Allies destroyed Cetus Guard 22967 | -4/Cetus | Spotted Cetus Guard 22978 | -4/Cetus | Allies destroyed Cetus Guard 22982 | -4/Cetus | Allies destroyed Cetus Guard 22986 | -4/Cetus | Destroyed Cetus Guard 23041 | -4/Cetus | Cetus Manufacturing Module disabled 23140 | -4/Cetus | Discovered new exit (range 16) 23168 | -4/Cetus | Spotted Cetus Guard 23168 | -4/Cetus | Spotted Cetus Guard 23170 | -4/Cetus | Spotted Cetus Guard 23179 | -4/Cetus | Allies destroyed Cetus Guard 23179 | -4/Cetus | Allies destroyed Cetus Guard 23180 | -4/Cetus | Spotted Cetus Guard 23180 | -4/Cetus | Destroyed Cetus Guard 23192 | -4/Cetus | Destroyed Cetus Guard 23208 | -4/Cetus | Discovered exit to Research (range 15) 23216 | -4/Cetus | Met Revision 17 23350 | -4/Cetus | Identified exit to Archives 23352 | -4/Cetus | Entered Archives 23501 | -4/Archives | Lost 6 parts (1p2n2u1w) 23743 | -4/Archives | Discovered new exit (range 15) 23877 | -4/Archives | Discovered exit to Research (range 16) 23887 | -4/Archives | Discovered new exit (range 15) 24036 | -4/Archives | Identified exit to Hub_04(d) 24037 | -4/Archives | Entered Hub_04(d) 24235 | -4/Hub_04(d) | Discovered exit to Research (range 18) 24269 | -4/Hub_04(d) | Garrison activated, responded to threat 24388 | -4/Hub_04(d) | Lost 4 parts (1p3n) 24438 | -4/Hub_04(d) | Identified Vortex Chain Reactor 24468 | -4/Hub_04(d) | Lost 3 parts (1p1n1u) 24526 | -4/Hub_04(d) | Network Hub disabled 24530 | -4/Hub_04(d) | Network Hub disabled 24537 | -4/Hub_04(d) | First assault squad dispatched 24567 | -4/Hub_04(d) | Incoming assault squad redirected 24570 | -4/Hub_04(d) | Entered Research 24570 | -3/Research | Evolved 2 slots: Power x1, Utility x1 24571 | -3/Research | Identified exit to Testing 25135 | -3/Research | Entered Testing 25136 | -3/Testing | Protovariant out of control (PY-6AV5XBPWDE) 25155 | -3/Testing | Incoming assault squad redirected 25322 | -3/Testing | Found Prototype Ballistic Cannon 25322 | -3/Testing | Identified Perforator 25736 | -3/Testing | Crushed by falling debris 25810 | -3/Testing | Spotted Striker 25862 | -3/Testing | Destroyed Striker 25870 | -3/Testing | Lost 3 parts (2u1w) 25892 | -3/Testing | Spotted Striker 25912 | -3/Testing | Destroyed Striker 25918 | -3/Testing | Spotted Alpha 7 25955 | -3/Testing | Destroyed Alpha 7 25957 | -3/Testing | Found Prototype Processor 25957 | -3/Testing | Identified Exp. Target Analyzer 25961 | -3/Testing | Found Prototype Processor 25961 | -3/Testing | Identified Exp. Targeting Computer 25965 | -3/Testing | Found Prototype Ballistic Gun 25985 | -3/Testing | Lost 3 parts (2n1u) 26052 | -3/Testing | Found Antimissile System 26060 | -3/Testing | System corruption reached 10% 26102 | -3/Testing | Lost 5 parts (1p3n1u) 26104 | -3/Testing | Destroyed 7 combat bots 26181 | -3/Testing | First assault squad dispatched 26213 | -3/Testing | Lost 3 parts (3n) 26300 | -3/Testing | Lost 8 parts (2p1n3u2w) 26327 | -3/Testing | Found Prototype Energy Cannon 26327 | -3/Testing | Identified Imp. Potential Cannon 26330 | -3/Testing | Found Imp. Potential Cannon 26362 | -3/Testing | Found Quantum Capacitor 26395 | -3/Testing | Found Prototype Energy Cannon 26395 | -3/Testing | Identified Disintegrator 26416 | -3/Testing | Discovered new exit (range 11) 26441 | -3/Testing | Entered Research 26441 | -2/Research | Warlord forces began assault on 0b10 26441 | -2/Research | Evolved 2 slots: Utility x1, Weapon x1 26551 | -2/Research | Research machine network offline 26584 | -2/Research | Met up with Warlord 26749 | -2/Research | Borebot progress halted 27091 | -2/Research | Borebot progress halted 27178 | -2/Research | Borebot progress halted 27293 | -2/Research | Spotted Striker 27304 | -2/Research | Destroyed Striker 27327 | -2/Research | Spotted Executioner 27327 | -2/Research | Spotted Executioner 27340 | -2/Research | Identified Multirail 27366 | -2/Research | Destroyed Executioner 27373 | -2/Research | Destroyed Executioner 27400 | -2/Research | Lost 9 parts (3p3n2u1w) 27499 | -2/Research | Spotted Executioner 27516 | -2/Research | Destroyed Executioner 27519 | -2/Research | Spotted Striker 27533 | -2/Research | Destroyed Striker 27764 | -2/Research | Discovered new exit (range 12) 27782 | -2/Research | Identified exit to Access 27843 | -2/Research | Spotted Striker 27850 | -2/Research | Spotted Executioner 27868 | -2/Research | Destroyed Striker 27886 | -2/Research | Destroyed Executioner 27942 | -2/Research | Spotted Striker 27943 | -2/Research | Spotted Striker 27947 | -2/Research | Destroyed Striker 27951 | -2/Research | Core integrity fell below 50% 27975 | -2/Research | Destroyed Striker 28208 | -2/Research | Spotted Striker 28229 | -2/Research | Spotted Striker 28242 | -2/Research | Destroyed Striker 28329 | -2/Research | Build established: Generator-Mutant 28384 | -2/Research | Discovered exit to Access (range 11) 28448 | -2/Research | Entered Access 28448 | -1/Access | Evolved 2 slots: Power x1, Utility x1 28590 | -1/Access | Destroyed 76-IV9(H) 28601 | -1/Access | System corruption reached 10% 28635 | -1/Access | Lost 3 parts (1p2n) 28640 | -1/Access | Destroyed 9 combat bots 28698 | -1/Access | First assault squad dispatched 28769 | -1/Access | Incoming assault squad redirected 28791 | -1/Access | System corruption reached 30% 28828 | -1/Access | Lost 9 parts (3p4n1u1w) 28854 | -1/Access | Destroyed 8 combat bots 29088 | -1/Access | Incoming investigation squad redirected 29452 | -1/Access | Build established: Scavenger-Mutant 29463 | -1/Access | Lost 5 parts (2p2n1w) 29507 | -1/Access | Released all parts (13) 29546 | -1/Access | Lost 7 parts (1p2n3u1w) 29603 | -1/Access | Lost 3 parts (2n1u) 29692 | -1/Access | Core integrity fell below 50% 29717 | -1/Access | Core integrity fell below 20% 29734 | -1/Access | Discovered new exit (range 7) 29753 | -1/Access | Destroyed by P-80 Master with Gamma Rifle Last Messages --------------- 29721_ Extracted 12 energy. 29721_ C-57 Dissector destroyed. 29722_ Extracted 31 energy. 29724_ Acquired Adv. Energy Well. 29725_ Acquired 39 matter. 29725_ Acquired 26 matter. 29726_ Acquired Adv. Surge Thruster. 29730_ Acquired 3 matter. 29730_ Acquired Mic. Fission Core. 29732_ Adv. Surge Thruster destroyed. 29733_ System corrupted: Component data lost. Terminal flashes as you approach. 29734_ EXIT=FOUND 29737_ Penetrated by Slug. 29737_ Adv. Surge Thruster destroyed. 29737_ Acquired 17 matter. 29740_ Penetrated by Slug. 29740_ Slug penetrates Wall. 29748_ GOC#S83XUK5VANU=VXVZVX6WC48OI 29752_ Knocked back. Map ----- +----------------------------------------------------+ | ?????????????????????????????????????????????????? | | ?????????????????????????????????????????????????? | | ?????????????????????????????????????????????????? | | ?????????????????????????????????????????????????? | | ?????????????????????????????????????????????????? | | ?????????????????????????????????????????????????? | | ?????????????????????????????????????????????????? | | ???????????????????????????????????????###"""??### | | ???????????????????????????????????????# ##T# | | ???????????????????????###############?# < | | ???????????????????????# #?# | | ???????????????????????# #?########## | | ???????????????????????# p#####T## #??######### | | ???????????????????????# #???#### ####" "" ""# | | ???????????????????????# #??????# * | | ???????????????????????# #??????# =] | | ???????????????????????# #??????# =%! | | ???????????????????????# #??????########T """"### | | ???????????????????????# #?????????????########?? | | ???????????????????????# #?#########????????????? | | ???????????????????????# # #????????????? | | ???????????????????????# # #????????????? | | ???????????????????????# + " #????????????? | | ?????????????#######+### # """ #????????????? | | ????????? # """?????????????? | | ????????H A @#? " #????????????? | | ????????????#+########## =#? #????????????? | | ???????????????????????#k #?? #????????????? | | ???????????????????????# #??########????????????? | | ???????????????????????# #??????????????????????? | | ???????????????????????# #??????????????????????? | | ???????????????????????# ############???????????? | | ??????????????????????## ## # ##??????????? | | ??????????????????????# ! # #??????????? | | ??????????????????????# ]%* #??????????? | | ??????????????????????# = #??????????? | | ??????????????????????# #??????????? | | ??????????????????????######## ##??????????? | | ????????????????????????# #???????????? | | ????????????????????????# #???????????? | | ????????????????????????# " # #?????????? ? | | ????????????????????????# """ # ####### ! ?? | | ????????????????????????# """ + ??? | | ????????????????????????# " # ???????? | | ????????????????????????# " ####?????????? | | ????????????????????????# * # #????????????? | | ?????????????????????############## #????????????? | | ?????????????????????# #??# #????????????? | | ?????????????????????# #### ##???????????? | | ?????????????????????# + +?? ???????? | +----------------------------------------------------+ Best States ------------- Heat Dissipation 117 Coolant Potential 100 Energy Generation 83 Energy Capacity 940 Matter Stores 300 Matter Capacity 300 Sight Range 16 Robot Scan Range 16 Terrain Scan Density 10 Jamming Range 16 Cloak Strength 4 EM Shielding 2 Corruption Block 8 Armor Coverage 3650 Resistance: KI 20 Resistance: TH 50 Resistance: EM 90 Core Shielding 30 Utility Shielding 33 Point Defense Rating 240 Melee Speed Boost 20 Evasion (%) 50 Targeting Accuracy 20 Target Analysis 10 Core Analysis 6 Recoil Reduction 6 Offensive Hacking 28 Defensive Hacking 12 Item Schematics ----------------- Huge Storage Unit | -10/Materials | Hacked Hcp. Storage Unit | -10/Materials | Hacked Seismic Detector | -10/Materials | Hacked Transport Network Coupler | -9/Materials | Scanalyzed Combat Drone Bay | -6/Data Miner | Free Lgt. Regenerative Plating | -6/Data Miner | Free Enh. Armored Leg | -6/Data Miner | Free Imp. Energy Well | -6/Data Miner | Free Neutron Cannon | -6/Data Miner | Free Impulse Thruster | -6/Data Miner | Free Adv. Coolant Injector | -6/Data Miner | Free Adv. Datajack | -6/Data Miner | Free Quantum Capacitor | -3/Research | Hacked Robot Schematics ------------------ S-27 Virus | -6/Data Miner | Free G-50 Soldier | -6/Data Miner | Free M-22 Extractor | -6/Data Miner | Free L-41 Fighter | -6/Data Miner | Free L-61 Swordsman | -6/Data Miner | Free R-10 Processor | -6/Data Miner | Free A-27 Freighter | -6/Data Miner | Free Fabricated ------------ Seismic Detector | x1 | -6/Factory Seismic Detector | x1 | -4/Factory Alien Tech Used ----------------- None Achievements -------------- None Challenges ------------ None Game ------ Seed TrapSurgePrototype Manual? 0 Play Time 04:41:23 Cumulative 263.7 hours Start 2022.12.04 @ 15:42:36 End 2022.12.05 @ 22:08:05 Sessions 5 Manual Loads 0 Difficulty Rogue Special Mode None Game No. 107 Rogue 107 Adventurer 0 Explorer 0 Win Type - Total 8 Types 3/1/2/1/1/0/0/0/0 Lore% 84 Gallery% 80 Achievement% 67 Wizard Run 0 Options --------- ASCII 0 Keyboard 1 Movement Numpad Keybinds 0 Fullscreen 2 Font 18/X11 Map View 76x50 Tactical HUD 1 Map Filters NONE Filters NONE Steam 1 RUN: 79b5b53a-920f-41d0-ad2f-17aebe00b926